bitfinex-derivatives/quotes_ETHF0:USTF0_20260119
["timestamp","ask_amount","ask_price","bid_price","bid_amount"]
[1768785054963,3.52277598,3222.3,3220.0,4.609]
[1768785055158,3.36754598,3222.1,3220.0,4.609]
[1768785055767,0.15523,3222.3,3220.0,4.609]
[1768785055768,0.004656,3221.4,3220.7,0.004656]
[1768785055973,0.004656,3221.4,3220.0,3.105]
[1768785055974,3.37220198,3221.4,3220.0,3.105]
[1768785056676,3.37220198,3221.4,3219.9,0.15843994]
[1768785057172,3.37220198,3221.4,3220.3,0.004656]
[1768785057373,3.37220198,3221.4,3219.9,0.00308994]
[1768785058778,3.36754598,3221.2,3219.9,0.00308994]
[1768785059861,3.36754598,3221.0,3219.9,0.00308994]
[1768785062368,0.9270291,3220.9,3218.7,0.15541]
[1768785062671,3.36754598,3220.7,3218.9,3.106]
[1768785062880,3.36754598,3220.5,3218.7,0.15541]
[1768785063480,0.92707956,3220.4,3218.8,0.79603378]
[1768785063780,3.37032824,3220.4,3218.8,0.79603378]
[1768785063965,0.00278226,3220.4,3218.8,4.29090995]
[1768785064277,0.00278226,3220.4,3219.3,0.004656]
[1768785066280,0.00278226,3220.4,3219.3,0.160036]
[1768785068068,0.00278226,3220.4,3219.3,0.004656]
[1768785068480,3.37032824,3220.4,3219.3,0.004656]
[1768785070085,0.00278226,3220.4,3219.3,0.004656]
[1768785072281,0.00278226,3220.4,3219.3,0.160026]
[1768785072476,0.00278226,3220.4,3219.4,0.15537]
[1768785073478,3.36754598,3221.2,3219.5,0.15537]
[1768785074287,3.36754598,3221.2,3219.6,0.15536]
[1768785074583,3.3707852,3221.2,3219.6,0.15536]
[1768785075576,0.00323922,3221.2,3219.6,3.65023617]
[1768785075776,0.00323922,3221.2,3219.9,3.65021617]
[1768785079192,0.00323922,3221.2,3220.0,0.15534]
[1768785081580,0.00323922,3221.2,3219.4,3.49487617]
[1768785081780,3.3707852,3221.2,3219.5,1.827]
[1768785082088,0.92390032,3221.1,3219.7,0.15536]
[1768785082286,0.00323922,3221.2,3219.8,0.15535]
[1768785082589,0.92427304,3221.1,3219.8,0.15535]
[1768785082888,3.48212463,3221.2,3219.8,0.15535]
[1768785083182,0.92426944,3221.1,3219.8,0.15535]
[1768785083486,3.48212463,3221.2,3219.8,0.15535]
[1768785083979,3.48212463,3221.2,3219.5,3.49487617]
[1768785083980,0.00323922,3221.2,3219.9,0.15535]
[1768785084379,0.00323922,3221.2,3220.0,0.15534]
[1768785084991,0.00323922,3221.2,3220.1,0.15534]
[1768785086485,0.00323922,3221.2,3220.2,0.15533]
[1768785087582,0.004656,3221.4,3220.6,0.15532]
[1768785087780,4.59291558,3222.2,3220.6,0.15532]
[1768785087781,3.47888541,3222.2,3220.6,0.15532]
[1768785087983,0.9247502,3222.1,3220.7,0.15531]
[1768785088187,3.47888541,3222.2,3220.7,0.15531]
[1768785088488,0.92439517,3222.1,3220.7,0.15531]
[1768785088679,3.48155084,3222.2,3220.7,0.15531]
[1768785088878,0.92439087,3222.1,3220.7,0.15531]
[1768785089083,0.004656,3221.7,3220.7,0.15531]
[1768785089379,0.004656,3221.7,3220.9,0.004656]
[1768785090784,3.48354141,3221.7,3220.9,0.004656]
[1768785090993,3.48354141,3221.7,3220.1,1.98234]
[1768785092293,3.48354141,3221.7,3220.2,0.15533]
[1768785094200,0.92429526,3221.6,3220.2,0.15533]
[1768785094495,3.48354141,3221.7,3220.2,0.15533]
[1768785094800,0.92430446,3221.6,3220.2,0.15533]
[1768785095097,3.48354141,3221.7,3220.3,0.15533]
[1768785096399,0.004656,3221.7,3220.1,5.09141374]
[1768785096587,0.004656,3221.7,3220.2,3.26441374]
[1768785096788,4.31499171,3222.2,3221.0,0.15529]
[1768785096991,0.00266543,3222.2,3221.0,0.15529]
[1768785097194,0.00266543,3222.2,3221.1,0.15529]
[1768785097397,0.00266543,3222.2,3221.1,0.15916168]
[1768785098190,0.004656,3222.0,3221.1,0.15916168]
[1768785099693,0.004656,3222.0,3221.1,0.00387168]
[1768785099895,3.25440685,3222.0,3221.1,0.00387168]
[1768785100199,3.24975085,3221.8,3220.1,1.827]
[1768785100404,3.24975085,3221.6,3220.1,1.827]
[1768785101295,3.24975085,3221.6,3220.1,1.83053905]
[1768785101689,3.24975085,3221.4,3220.1,0.00353905]
[1768785101987,0.83344087,3221.7,3220.1,0.00353905]
[1768785101988,3.24975085,3221.2,3220.1,0.00353905]
[1768785102598,3.24975085,3221.0,3220.1,0.00353905]
[1768785102799,3.24975085,3221.0,3219.5,0.15537]
[1768785102800,3.24975085,3220.8,3219.1,3.106]
[1768785103409,0.004656,3220.3,3219.1,3.106]
[1768785103796,0.004656,3220.3,3219.1,3.10996018]
[1768785104695,0.004656,3220.3,3219.2,0.15538]
[1768785107006,0.004656,3220.3,3219.1,6.43403844]
[1768785107908,0.004656,3220.3,3219.4,0.15537]
[1768785108202,0.004656,3220.3,3219.1,6.43403844]
[1768785108203,10.396,3221.3,3219.2,3.32407826]
[1768785108607,10.396,3221.3,3219.9,0.15535]
[1768785108806,3.24975085,3221.8,3220.0,0.15534]
[1768785109399,3.24975085,3221.1,3219.5,1.826]
[1768785110511,3.24975085,3220.9,3219.5,1.826]
[1768785110717,0.84000006,3221.2,3219.6,0.15536]
[1768785110914,0.91948182,3221.1,3219.7,0.15536]
[1768785111101,0.004656,3221.2,3219.7,0.15536]
[1768785111300,3.25440685,3221.2,3219.7,0.15536]
[1768785112309,3.25440685,3221.2,3219.5,1.826]
[1768785112310,3.25440685,3221.2,3219.8,0.15535]
[1768785115314,3.25440685,3221.2,3219.9,0.15535]
[1768785115702,0.004656,3221.2,3219.6,1.85206614]
[1768785115906,0.004656,3221.2,3220.1,0.15534]
[1768785119306,3.36763776,3221.1,3219.1,3.88034185]
[1768785119512,0.91968089,3221.0,3219.4,0.15537]
[1768785119815,0.004656,3221.2,3219.6,0.15536]
[1768785120010,0.004656,3221.2,3219.9,0.004656]
[1768785120516,0.004656,3221.2,3220.0,0.15534]
[1768785120720,3.37229376,3221.2,3219.9,0.004656]
[1768785121507,3.36763776,3221.0,3219.9,0.004656]
[1768785122122,3.36763776,3220.8,3219.9,0.004656]
[1768785122323,3.36763776,3220.8,3219.3,0.15538]
[1768785122929,0.91941239,3220.7,3219.1,0.00396018]
[1768785123116,3.36763776,3220.6,3219.1,0.00396018]
[1768785124114,3.36763776,3220.6,3218.4,3.76242887]
[1768785124115,0.83534406,3220.3,3218.2,0.15543]
[1768785124319,3.36763776,3220.1,3218.2,0.15543]
[1768785124619,4.28682631,3220.0,3218.2,0.15543]
[1768785124826,0.83534406,3220.3,3218.3,0.15543]
[1768785124827,0.004656,3219.5,3218.3,0.15543]
[1768785125027,0.00750119,3219.5,3218.3,0.15873586]
[1768785130925,3.37513895,3219.5,3218.3,0.15873586]
[1768785131126,3.37513895,3219.5,3218.3,0.00330586]
[1768785133632,0.00750119,3219.5,3218.4,0.15542]
[1768785134135,3.36763776,3220.0,3218.6,0.15541]
[1768785134932,0.83341402,3220.7,3218.3,0.00330586]
[1768785134933,3.36763776,3219.7,3218.3,0.00330586]
[1768785135132,3.36987505,3219.7,3218.3,0.00330586]
[1768785135434,0.004656,3219.3,3218.7,0.004656]
[1768785136627,3.37229376,3219.3,3218.3,0.00330586]
[1768785137838,0.004656,3219.3,3218.3,0.00330586]
[1768785144828,0.004656,3219.3,3218.3,0.15873586]
[1768785146032,0.004656,3219.3,3218.4,0.15542]
[1768785146439,0.00223729,3219.7,3218.6,0.15541]
[1768785147643,0.004656,3219.5,3218.6,0.15541]
[1768785149343,0.83341402,3220.2,3218.8,0.1554]
[1768785149548,3.57626184,3220.3,3219.0,0.15539]
[1768785149847,4.40967586,3220.7,3219.0,0.15539]
[1768785150048,4.49622454,3220.6,3219.0,0.15539]
[1768785150249,0.9199627,3220.5,3219.0,0.15539]
[1768785150444,3.57872293,3220.6,3219.0,0.15539]
[1768785150644,0.91980996,3220.5,3219.5,0.004656]
[1768785150848,3.57872293,3220.6,3219.5,0.004656]
[1768785151148,0.91981968,3220.5,3219.5,0.004656]
[1768785151447,0.91981968,3220.4,3219.5,0.004656]
[1768785151652,4.49608152,3220.3,3219.5,0.004656]
[1768785151853,3.57626184,3220.3,3219.5,0.004656]
[1768785152751,0.00246109,3220.6,3219.5,0.004656]
[1768785152953,0.00246109,3220.6,3219.5,0.160026]
[1768785153152,0.00246109,3220.6,3219.7,0.15536]
[1768785153346,0.83341402,3221.2,3219.8,0.15535]
[1768785153547,0.91992687,3221.2,3219.8,0.15535]
[1768785153747,0.91992687,3221.1,3219.8,0.15535]
[1768785153946,3.57626184,3221.3,3219.8,0.15535]
[1768785154159,0.91987656,3221.2,3219.8,0.15535]
[1768785154357,0.00247884,3221.2,3219.8,0.15535]
[1768785158152,3.36897378,3221.2,3219.8,0.15535]
[1768785159364,0.00247884,3221.2,3219.8,0.15535]
[1768785160358,3.36897378,3221.2,3219.5,0.004656]
[1768785160766,0.00247884,3221.2,3219.9,2.00740614]
[1768785161060,0.00247884,3221.2,3220.0,0.15534]
[1768785161955,3.36897378,3221.2,3219.5,0.004656]
[1768785162153,3.36649494,3221.0,3219.5,0.004656]
[1768785162661,3.36649494,3220.8,3219.5,0.004656]
[1768785165158,3.36649494,3220.8,3219.0,0.15539]
[1768785165362,3.36649494,3220.4,3219.0,0.15539]
[1768785166169,3.36649494,3220.4,3218.5,5.33260055]
[1768785166464,3.36649494,3220.4,3218.5,1.823]
[1768785166664,3.37115094,3220.5,3218.6,3.50960055]
[1768785166965,11.38468402,3221.5,3219.5,1.85206614]
[1768785167162,0.91962649,3221.1,3219.3,0.15538]
[1768785167368,0.91965703,3221.0,3219.3,0.15538]
[1768785167576,0.83341402,3221.3,3219.3,0.15538]
[1768785167760,0.91967768,3221.1,3219.3,0.15538]
[1768785167961,0.91967768,3221.0,3219.3,0.15538]
[1768785168167,0.91967768,3220.9,3219.3,0.15538]
[1768785168366,0.91967768,3220.8,3219.3,0.15538]
[1768785168663,0.91967768,3220.7,3219.1,0.004656]
[1768785168863,4.28617262,3220.6,3219.1,0.004656]
[1768785169063,3.36649494,3220.6,3219.1,0.004656]
[1768785169260,3.36649494,3220.4,3219.1,0.004656]
[1768785169866,0.004656,3220.1,3219.1,0.004656]
[1768785171560,0.004656,3220.1,3219.1,3.66964655]
[1768785171765,0.004656,3220.1,3219.2,0.15538]
[1768785173466,0.004656,3220.1,3219.3,0.15538]
[1768785173870,0.83341402,3221.1,3219.4,3.71411346]
[1768785174072,0.92089669,3221.0,3219.4,3.71411346]
[1768785174367,0.92089669,3220.9,3219.5,3.55874346]
[1768785174570,0.83589286,3221.2,3219.1,1.85672214]
[1768785174571,0.00247884,3221.2,3219.6,3.71410346]
[1768785174766,0.92118992,3221.1,3219.6,3.71410346]
[1768785174966,0.00247884,3221.2,3219.6,3.71410346]
[1768785175168,0.00247884,3221.2,3219.9,3.71409346]
[1768785176673,0.004656,3220.9,3219.9,3.71409346]
[1768785176978,0.004656,3220.9,3219.9,3.55874346]
[1768785177675,0.00247884,3221.2,3220.1,3.71408346]
[1768785180280,0.00247884,3221.2,3220.3,3.55874346]
[1768785180474,0.00247884,3221.2,3220.2,0.15533]
[1768785180779,0.00247884,3221.2,3219.9,1.822]
[1768785181773,3.34568723,3221.2,3219.6,0.15536]
[1768785182076,1.75518602,3221.1,3219.6,3.71410346]
[1768785182375,0.00247884,3221.2,3219.7,3.71410346]
[1768785182575,0.00247884,3221.2,3219.8,3.71409346]
[1768785183871,0.00247884,3221.2,3219.6,1.822]
[1768785184576,4.26505841,3221.1,3219.3,3.55874346]
[1768785184879,5.09847243,3221.0,3219.3,3.55874346]
[1768785185074,4.26505841,3220.9,3219.2,0.15538]
[1768785185279,0.92185002,3220.8,3219.2,0.15538]
[1768785185974,3.34320839,3220.7,3219.1,1.826656]
[1768785186174,4.17662241,3220.5,3219.1,0.004656]
[1768785186374,0.00463067,3220.2,3219.1,0.004656]
[1768785186577,3.34320839,3220.1,3218.5,0.15542]
[1768785186788,0.92185002,3220.0,3218.5,0.15542]
[1768785187172,4.26505841,3220.0,3218.3,3.56204932]
[1768785187380,0.00463067,3220.2,3218.7,3.55874346]
[1768785187980,0.00463067,3220.2,3219.1,0.004656]
[1768785193187,0.00463067,3220.2,3218.3,0.00330586]
[1768785193188,3.34320839,3220.0,3218.3,0.00330586]
[1768785193376,4.26526905,3219.9,3218.3,0.00330586]
[1768785193572,4.26526905,3219.8,3218.3,0.00330586]
[1768785193774,0.92206066,3219.7,3218.3,0.00330586]
[1768785194280,4.26526905,3219.7,3218.3,0.00330586]
[1768785194481,3.34320839,3219.5,3217.5,0.15546]
[1768785194679,4.26526905,3219.4,3217.5,0.15546]
[1768785194881,0.92206066,3219.3,3217.5,0.15546]
[1768785195185,0.15537,3219.5,3217.5,3.71420346]
[1768785195381,0.92086818,3219.4,3217.5,3.71420346]
[1768785195585,0.15537,3219.5,3217.5,3.71714191]
[1768785195779,0.92086755,3219.4,3217.5,3.71714191]
[1768785195979,0.83341402,3219.8,3217.7,3.55874346]
[1768785196181,1.75424756,3219.8,3217.7,3.71420346]
[1768785196490,0.92083354,3219.7,3217.7,3.55874346]
[1768785196694,3.34320839,3219.9,3217.7,3.55874346]
[1768785196878,0.92033464,3219.8,3217.7,3.55874346]
[1768785197080,4.26354303,3219.7,3218.4,0.004656]
[1768785197373,3.34320839,3219.6,3218.4,0.004656]
[1768785200485,4.26252696,3219.5,3218.4,0.004656]
[1768785200683,0.91931857,3219.4,3218.4,0.004656]
[1768785201307,3.34320839,3219.5,3218.4,0.004656]
[1768785201592,0.91898209,3219.4,3218.4,0.004656]
[1768785201895,3.49857839,3219.5,3218.4,0.004656]
[1768785203089,0.91853851,3219.4,3218.4,0.004656]
[1768785203396,3.49857839,3219.5,3218.4,0.004656]
[1768785203592,3.59441462,3218.8,3217.5,0.00293845]
[1768785203894,5.41307561,3218.8,3217.5,0.00293845]
[1768785204088,0.15906099,3218.8,3217.5,0.00293845]
[1768785204391,0.00366099,3218.8,3217.5,0.00293845]
[1768785204887,0.004656,3218.5,3217.5,0.00293845]
[1768785205285,0.004656,3218.5,3217.6,0.00330586]
[1768785205691,0.004656,3218.5,3217.5,0.00293845]
[1768785205692,0.004656,3218.5,3217.7,0.00330586]
[1768785205990,0.004656,3218.5,3217.5,0.00624431]
[1768785206179,0.004656,3218.5,3217.5,0.00293845]
[1768785206898,0.004656,3218.5,3216.1,1.8517124]
[1768785206899,3.59907062,3218.5,3216.6,3.47482968]
[1768785208099,3.59907062,3218.5,3216.6,3.47865274]
[1768785209985,0.004656,3218.5,3216.8,3.47482968]
[1768785210386,0.004656,3218.5,3217.3,0.004656]
[1768785213185,3.74985462,3218.1,3216.6,0.00382306]
[1768785213591,0.83649325,3218.5,3216.6,0.00382306]
[1768785213796,0.91880184,3218.4,3216.6,3.47865274]
[1768785213996,4.51321646,3218.3,3216.6,3.47865274]
[1768785214197,0.004656,3218.5,3216.6,3.47865274]
[1768785214198,4.51351085,3218.2,3216.6,0.00382306]
[1768785214398,4.51351279,3218.1,3216.6,0.00382306]
[1768785214699,3.59441462,3218.1,3216.6,0.00382306]
[1768785215091,0.15547,3217.5,3215.6,3.47482968]
[1768785215297,0.15547,3217.4,3215.6,3.47482968]
[1768785215699,0.00466338,3216.8,3215.6,3.47482968]
[1768785216197,0.00466338,3216.8,3215.9,0.00330586]
[1768785216704,0.00466338,3216.8,3216.0,0.00330586]
[1768785217003,0.00466338,3216.8,3215.9,0.00330586]
[1768785217191,0.00466338,3216.8,3216.0,0.00330586]
[1768785217396,0.00466338,3216.8,3215.9,0.00330586]
[1768785217808,0.00466338,3216.8,3215.6,3.47704022]
[1768785217997,0.00466338,3216.8,3215.9,0.00330586]
[1768785218508,0.00466338,3216.8,3216.1,0.00330586]
[1768785218703,0.00466338,3216.8,3215.9,0.00330586]
[1768785219211,0.00466338,3216.8,3216.1,0.00330586]
[1768785219410,0.00466338,3216.8,3215.9,0.00330586]
[1768785219719,0.00466338,3216.8,3215.9,3.49743789]
[1768785220206,0.00466338,3216.8,3216.4,0.00330586]
[1768785220406,0.00466338,3216.8,3215.9,3.49743789]
[1768785220609,0.00466338,3216.8,3216.1,0.00330586]
[1768785221010,0.00466338,3216.8,3215.9,3.49743789]
[1768785221210,0.00466338,3216.8,3216.2,0.00330586]
[1768785221401,0.00466338,3216.8,3216.3,0.00330586]
[1768785221602,0.00466338,3216.8,3216.2,0.00330586]
[1768785222111,0.00466338,3216.8,3216.3,0.00330586]
[1768785222409,0.00466338,3216.8,3216.2,0.00330586]
[1768785223012,0.00466338,3216.8,3216.3,0.00330586]
[1768785223305,0.00466338,3216.8,3216.2,0.00330586]
[1768785223710,0.00466338,3216.8,3216.3,0.00330586]
[1768785223906,0.00466338,3216.8,3215.9,3.49743789]
[1768785224112,0.00466338,3216.8,3216.3,0.00330586]
[1768785224311,0.00466338,3216.8,3216.5,0.00330586]
[1768785224508,0.00466338,3216.8,3216.3,0.00330586]
[1768785224911,0.00466338,3216.8,3216.5,0.00330586]
[1768785225113,0.00466338,3216.8,3216.3,0.00330586]
[1768785225510,0.00466338,3216.8,3215.9,3.49743789]
[1768785225511,0.00466338,3216.8,3216.5,0.00330586]
[1768785225711,0.00466338,3216.8,3216.3,0.00330586]
[1768785226113,0.00466338,3216.8,3216.5,0.00330586]
[1768785226310,0.00466338,3216.8,3216.3,0.00330586]
[1768785226712,0.00466338,3216.8,3216.5,0.00330586]
[1768785226901,0.00466338,3216.8,3216.3,0.00330586]
[1768785227323,0.00466338,3216.8,3216.5,0.00330586]
[1768785227615,0.00466338,3216.8,3216.3,0.00330586]
[1768785228117,0.00466338,3216.8,3216.5,0.00330586]
[1768785228318,0.00466338,3216.8,3216.3,0.00330586]
[1768785228719,0.00466338,3216.8,3216.5,0.00330586]
[1768785228922,0.00466338,3216.8,3216.3,0.00330586]
[1768785229418,0.00466338,3216.8,3216.5,0.00330586]
[1768785229714,0.00466338,3216.8,3215.9,3.49743789]
[1768785229916,0.00466338,3216.8,3215.7,0.15555]
[1768785230113,0.00466338,3216.8,3215.6,0.00221054]
[1768785230806,0.00466338,3216.8,3215.9,0.00315394]
[1768785231212,0.93142187,3216.7,3215.9,0.00315394]
[1768785231411,0.00466338,3216.8,3215.9,0.00315394]
[1768785231616,0.93142293,3216.7,3215.9,0.00315394]
[1768785231816,0.00466338,3216.8,3215.9,0.00315394]
[1768785231817,0.93143479,3216.6,3215.9,0.00315394]
[1768785232011,0.00466338,3216.8,3215.6,0.00221054]
[1768785232215,5.11005473,3216.8,3215.6,0.00221054]
[1768785232414,0.93145677,3216.7,3215.6,0.00221054]
[1768785232916,1.76502308,3216.7,3215.6,0.00221054]
[1768785233123,1.76502308,3216.6,3214.8,1.155]
[1768785233523,1.76502308,3216.6,3214.6,3.39744895]
[1768785233717,1.76502308,3216.6,3214.7,5.21844895]
[1768785234108,1.76502308,3216.6,3214.7,5.22115558]
[1768785234314,1.76502308,3216.6,3214.9,3.39744895]
[1768785236229,1.76502308,3216.5,3214.9,3.39744895]
[1768785236417,0.93145677,3216.4,3214.9,3.39744895]
[1768785239212,0.93145677,3216.3,3214.9,3.39744895]
[1768785239422,0.00316838,3216.5,3214.9,3.39744895]
[1768785239625,0.83673469,3216.5,3214.9,3.39744895]
[1768785239928,0.93231079,3216.4,3214.9,5.21844895]
[1768785240124,0.93231079,3216.4,3215.0,3.39744895]
[1768785241122,1.7658771,3216.4,3215.0,3.39744895]
[1768785241324,0.93231079,3216.3,3215.0,3.39744895]
[1768785241526,0.93231079,3216.2,3215.0,3.39744895]
[1768785241728,0.83356631,3216.4,3215.0,3.39744895]
[1768785242032,0.93280076,3216.3,3215.2,3.39744895]
[1768785242221,0.00316838,3216.5,3215.2,3.55302895]
[1768785242626,0.00316838,3216.5,3215.4,3.39744895]
[1768785243027,0.00316838,3216.5,3215.4,3.55300895]
[1768785243429,0.9337167,3216.4,3215.4,3.55300895]
[1768785243623,0.00316838,3216.5,3215.4,3.55300895]
[1768785243831,0.9337232,3216.4,3215.4,3.39744895]
[1768785244025,0.9337232,3216.3,3215.4,3.39744895]
[1768785244231,0.83673469,3216.5,3215.4,3.39744895]
[1768785244529,0.93399755,3216.4,3215.4,3.39744895]
[1768785244734,0.00316838,3216.5,3215.6,3.39744895]
[1768785244931,0.00466338,3216.8,3215.6,3.39744895]
[1768785245325,0.83356631,3217.2,3215.9,3.55298895]
[1768785245534,0.83356631,3217.5,3216.3,3.55296895]
[1768785245726,0.93392761,3217.4,3216.5,3.39744895]
[1768785245928,0.00397302,3217.4,3216.5,3.39744895]
[1768785246327,0.83356631,3217.8,3216.5,3.39744895]
[1768785246536,0.93352879,3217.7,3216.7,3.39744895]
[1768785246844,0.83356631,3218.3,3216.9,3.39744895]
[1768785247028,0.93340282,3218.2,3216.9,3.39744895]
[1768785247338,1.76696913,3218.1,3216.6,1.821]
[1768785247537,0.93340282,3218.0,3216.6,1.821]
[1768785247840,0.83356631,3218.1,3216.6,1.821]
[1768785247841,0.93340282,3217.9,3216.6,1.821]
[1768785248040,0.00466338,3217.6,3216.6,1.821]
[1768785248226,0.00466338,3217.6,3216.9,0.00466338]
[1768785249140,0.00466338,3217.6,3216.9,3.40211233]
[1768785250433,0.00254076,3218.2,3216.9,3.40211233]
[1768785250626,0.93120882,3218.1,3216.9,3.40211233]
[1768785250838,0.00254076,3218.2,3216.9,3.40211233]
[1768785251041,0.93120913,3218.1,3216.9,3.40211233]
[1768785251239,0.00254076,3218.2,3216.9,3.40211233]
[1768785251635,0.00466338,3217.8,3216.9,3.40211233]
[1768785252041,0.00466338,3217.8,3216.9,5.22311233]
[1768785254040,0.00466338,3217.8,3216.9,3.40211233]
[1768785254251,0.00466338,3217.8,3216.9,5.22211233]
[1768785254935,0.00466338,3217.8,3217.0,3.39744895]
[1768785255136,0.00466338,3217.8,3217.0,3.4008017]
[1768785256142,0.00466338,3217.8,3217.0,0.00335275]
[1768785260144,0.00466338,3217.8,3217.1,3.39744895]
[1768785260344,0.00254076,3218.2,3217.1,3.39744895]
[1768785265635,0.00466338,3218.0,3217.1,3.39744895]
[1768785266337,0.00254076,3218.2,3217.1,3.39744895]
[1768785267647,0.00254076,3218.2,3217.1,3.55292895]
[1768785270042,0.00254076,3218.2,3217.2,0.15548]
[1768785270242,0.00254076,3218.2,3217.3,3.39899333]
[1768785272738,0.00254076,3218.2,3217.4,1.819]
[1768785273553,0.00254076,3218.2,3217.3,3.39899333]
[1768785273952,0.00254076,3218.2,3217.0,0.00335275]
[1768785274151,0.00254076,3218.2,3217.1,1.819]
[1768785275049,0.00254076,3218.2,3217.1,5.21799333]
[1768785275239,0.93391599,3218.1,3217.1,5.21799333]
[1768785275443,0.00254076,3218.2,3217.1,5.21799333]
[1768785275751,0.00254076,3218.2,3217.1,1.819]
[1768785275752,0.93391738,3218.1,3217.1,1.819]
[1768785275954,0.93391738,3218.0,3217.1,1.819]
[1768785276254,0.00254076,3218.2,3217.1,1.819]
[1768785276444,0.93404502,3218.1,3217.1,1.819]
[1768785276647,0.93404502,3218.0,3217.1,1.819]
[1768785276846,0.00254076,3218.2,3217.1,1.819]
[1768785277046,0.93404597,3218.1,3217.1,1.819]
[1768785277249,0.93404597,3218.0,3217.1,1.819]
[1768785277451,0.00254076,3218.2,3217.1,1.819]
[1768785277654,0.93405234,3218.1,3217.1,1.819]
[1768785277850,0.93405234,3218.0,3217.2,3.34826935]
[1768785278050,0.00254076,3218.2,3217.2,3.34826935]
[1768785278250,0.93405154,3218.1,3217.2,3.34826935]
[1768785278457,0.93405154,3218.0,3217.2,3.34826935]
[1768785278660,0.00254076,3218.2,3217.2,3.34826935]
[1768785278958,0.93295883,3218.1,3217.2,3.34826935]
[1768785279158,0.93295883,3218.0,3217.2,3.34826935]
[1768785279353,0.00254076,3218.2,3217.2,3.34826935]
[1768785279551,0.93301212,3218.1,3217.2,3.34826935]
[1768785279750,0.93301212,3218.0,3217.0,0.00335275]
[1768785279956,0.93301212,3217.9,3217.0,1.82235275]
[1768785280156,0.83610707,3218.2,3217.0,1.82235275]
[1768785280358,0.00466338,3217.8,3217.0,1.82235275]
[1768785280558,0.00466338,3217.8,3217.0,0.00335275]
[1768785281054,0.93308914,3217.7,3217.0,0.00335275]
[1768785281260,0.93308914,3217.6,3216.9,0.00466338]
[1768785281458,0.00466338,3217.8,3216.9,0.00466338]
[1768785281648,0.93301857,3217.7,3216.9,0.00466338]
[1768785281846,0.93301857,3217.6,3216.9,0.00466338]
[1768785282048,0.93301857,3217.6,3216.3,3.34826935]
[1768785282049,0.9330343,3217.5,3216.3,3.34826935]
[1768785282257,0.93306044,3217.4,3216.3,0.00393168]
[1768785282450,0.93306044,3217.3,3216.3,1.82193168]
[1768785282655,0.93280848,3217.2,3216.3,0.00393168]
[1768785282856,0.83356631,3217.4,3216.3,0.00393168]
[1768785283258,0.83356631,3217.5,3216.5,0.00466338]
[1768785283456,0.83356631,3217.3,3216.5,0.00466338]
[1768785283653,0.83356631,3217.3,3216.3,0.00393168]
[1768785284453,0.83356631,3217.4,3216.3,3.35220103]
[1768785284659,0.83356631,3217.7,3216.3,3.35220103]
[1768785284974,0.93192302,3217.7,3216.5,3.35293273]
[1768785285262,0.00466338,3217.8,3216.5,3.35293273]
[1768785285461,0.93182829,3217.7,3216.5,3.35293273]
[1768785285656,0.00466338,3217.8,3216.5,3.35293273]
[1768785285859,0.93182829,3217.7,3216.5,3.35293273]
[1768785286056,0.00466338,3217.8,3216.6,1.818]
[1768785286257,0.93182641,3217.7,3216.6,1.818]
[1768785286562,0.83610707,3218.2,3216.7,3.34826935]
[1768785286764,0.93171676,3218.1,3216.7,3.34826935]
[1768785286961,0.93171676,3218.0,3216.7,3.34826935]
[1768785287162,0.00254076,3218.2,3216.7,3.34826935]
[1768785287352,0.93169993,3218.1,3216.9,3.34826935]
[1768785287660,0.00254076,3218.2,3216.9,3.34826935]
[1768785290060,0.93172193,3218.1,3216.5,3.35293273]
[1768785290362,0.00254076,3218.2,3216.6,3.34826935]
[1768785290548,0.93171253,3218.1,3216.6,3.34826935]
[1768785290752,0.00254076,3218.2,3216.6,3.34826935]
[1768785290962,0.93171103,3218.1,3216.6,3.34826935]
[1768785291165,0.00254076,3218.2,3216.6,3.34826935]
[1768785291364,0.93171123,3218.1,3216.6,3.34826935]
[1768785291563,0.93171123,3218.1,3216.5,1.97817338]
[1768785291564,0.00254076,3218.2,3216.8,3.34826935]
[1768785291765,0.00254076,3218.2,3216.8,3.50376935]
[1768785291957,0.00254076,3218.2,3216.8,3.64076935]
[1768785292161,0.00254076,3218.2,3216.9,4.927]
[1768785292756,0.93172435,3218.1,3217.0,3.25588109]
[1768785292956,0.00254076,3218.2,3217.0,3.25588109]
[1768785293154,0.00254076,3218.2,3217.0,3.41137109]
[1768785295566,0.00254076,3218.2,3217.1,5.07388109]
[1768785295764,0.00254076,3218.2,3217.2,3.25588109]
[1768785295964,0.00254076,3218.2,3216.6,0.137]
[1768785296170,0.93168042,3218.1,3216.7,1.818]
[1768785296468,0.00254076,3218.2,3216.7,5.07388109]
[1768785296667,0.00466338,3217.7,3216.7,5.07388109]
[1768785297168,0.00466338,3217.7,3216.8,1.818]
[1768785297376,0.00466338,3217.7,3216.8,5.07388109]
[1768785298068,0.00466338,3217.7,3216.8,3.25588109]
[1768785298369,0.00466338,3217.7,3216.9,1.818]
[1768785298764,0.00466338,3217.7,3216.8,3.25588109]
[1768785298972,0.00466338,3217.7,3216.8,5.07388109]
[1768785300865,0.00466338,3217.7,3216.5,0.00466338]
[1768785301063,0.83356631,3217.3,3216.5,0.00466338]
[1768785301363,0.93204628,3217.2,3216.5,0.00466338]
[1768785301558,0.93204628,3217.1,3216.3,0.00393168]
[1768785301760,5.2128082,3217.0,3215.2,3.25588109]
[1768785301966,0.93204628,3216.9,3215.2,3.25588109]
[1768785302282,0.93204628,3216.8,3215.2,3.25588109]
[1768785302473,0.93204628,3216.7,3215.2,3.25588109]
[1768785302675,0.83356631,3217.1,3215.2,3.25807261]
[1768785302870,0.83356631,3217.1,3215.6,3.26054447]
[1768785303567,0.83356631,3217.1,3215.6,5.07854447]
[1768785303873,0.83356631,3217.1,3215.7,3.25588109]
[1768785304775,0.93137825,3217.3,3215.7,3.25588109]
[1768785304978,0.93038501,3217.2,3215.7,3.25588109]
[1768785305278,0.93032607,3217.1,3215.6,1.82266338]
[1768785305476,3.44717561,3217.4,3215.6,1.82266338]
[1768785305674,1.76386115,3217.3,3215.6,1.82266338]
[1768785306470,0.93029484,3217.2,3215.6,1.82266338]
[1768785306677,0.93029484,3217.1,3215.6,1.82266338]
[1768785306873,0.93029484,3217.0,3215.6,1.82266338]
[1768785307069,0.93029484,3216.9,3215.6,1.82266338]
[1768785307269,0.83356631,3217.2,3215.6,1.82266338]
[1768785307469,0.83356631,3217.2,3215.7,3.25588109]
[1768785307869,0.92988064,3217.1,3215.7,3.25588109]
[1768785308070,0.92988064,3217.0,3215.7,3.25588109]
[1768785308276,0.92988064,3216.9,3215.7,3.25588109]
[1768785308482,0.83356631,3217.3,3215.7,3.25588109]
[1768785308682,1.77593666,3217.2,3215.7,3.25588109]
[1768785308984,0.94237035,3217.1,3215.7,3.25588109]